[Event "III. World-ch for Disabled 2017"]
[Site "Dresden"]
[Date "2017.10.10"]
[Round "6.1"]
[White "Varezhkin, Viktor"]
[Black "Lipilin, Ilia"]
[Result "1-0"]
[ECO "E04"]
[WhiteElo "2243"]
[BlackElo "1883"]
[Annotator "NA"]
[PlyCount "138"]
[EventDate "2017.??.??"]
[EventType "swiss"]
[EventCountry "GER"]
[SourceTitle "playchess.com"]
[Source "ChessBase"]
[SourceQuality "1"]
[TimeControl "40/5400+30:1800+30"]

{[%evp 8,123,18,14,10,28,14,6,18,32767,18,20,20,6,33,21,45,29,73,74,81,84,97,93,100,83,102,22,47,29,26,9,9,8,8,8,6,4,14,0,13,0,0,0,22,-8,-1,-13,10,10,17,6,12,5,11,14,17,6,16,0,8,0,12,2,4,0,4,2,20,11,32767,32767,32767,32767,32767,32767,32767,32767,32767,85,89,79,79,0,73,89,85,75,85,89,85,85,126,126,126,126,126,120,120,107,119,123,133,120,133,126,123,53,62,62,53,37,37,35,41,3,12845,1028]} 1. d4 {[%emt 0:00:00]} d5 {[%emt 1:30:17]} 2. Nf3 {[%emt 1:30:50]} Nf6 {[%emt 1:30:50]} 3. g3 {[%emt 1:31:14]} e6 {[%emt 1:30:49]} 4. Bg2 {[%emt 1:31:39]} c5 {[%emt 1:31:39]} 5. O-O {[%emt 1:32:04]} Nc6 {[%emt 1:32:04]} 6. c4 {[%emt 1:32:25]} dxc4 {[%emt 1:31:01]} 7. Qa4 {[%emt 1:32:51]} Bd7 {[%emt 1:30:01]} 8. Qxc4 {[%emt 1:30:01]} cxd4 {[%emt 1:27:43]} 9. Nxd4 {[%emt 1:27:04]} Rc8 {[%emt 1:26:30]} 10. Nc3 {[%emt 1:24:07]} Qb6 {[%emt 1:12:25]} 11. Nxc6 {[%emt 1:11:11] LiveBook: 17 Games} Bxc6 {[%emt 1:11:11]} 12. Be3 {[%emt 1:10:38]} Qb4 {[%emt 0:47:47]} 13. Qxb4 {[%emt 1:09:55]} Bxb4 {[%emt 0:47:59]} 14. Bxa7 {[%emt 1:09:50]} Bxc3 {[%emt 0:48:02]} 15. bxc3 {[%emt 1:09:43]} Bxg2 {[%emt 0:48:08]} 16. Kxg2 {[%emt 1:10:09]} Rxc3 {[%emt 0:47:30]} 17. Bd4 {[%emt 1:00:53]} (17. Rfb1 $16) 17... Rc7 {[%emt 0:43:57]} 18. Rab1 {[%emt 0:56:29]} O-O {[%emt 0:41:23]} 19. Rb2 {[%emt 0:56:27]} Ra8 {[%emt 0:39:52]} 20. Rfb1 {[%emt 0:56:31]} h6 {[%emt 0:39:50]} 21. Be5 {[%emt 0:50:27]} Rd7 {[%emt 0:39:41]} 22. Rc1 {[%emt 0:50:09]} b5 {[%emt 0:50:09]} 23. Rcc2 {[%emt 0:26:55]} Rda7 {[%emt 0:25:25]} 24. Bd4 {[%emt 0:47:03]} Ra4 {[%emt 0:25:00]} 25. e3 {[%emt 0:43:00]} Nd5 {[%emt 0:18:03]} 26. Rd2 {[%emt 0:38:07]} b4 {[%emt 0:17:32]} 27. Bc5 {[%emt 0:29:49]} Nc3 {[%emt 0:29:49]} 28. Bxb4 {[%emt 0:29:01]} Nxa2 {[%emt 0:29:01]} 29. Bc5 {[%emt 0:17:26]} Nc3 {[%emt 0:17:10]} 30. Bd4 {[%emt 0:17:10]} Nd5 {[%emt 0:16:31]} 31. h4 {[%emt 0:21:04]} Nb4 {[%emt 0:14:53]} 32. Bc5 {[%emt 0:20:23]} Nd5 {[%emt 0:14:44]} 33. Kf3 {[%emt 0:20:04]} Rc4 {[%emt 0:20:04]} 34. Bd4 {[%emt 0:18:37]} Ne7 {[%emt 0:13:03]} 35. Rb7 {[%emt 0:16:39]} Nc6 {[%emt 0:12:16]} 36. Bb2 {[%emt 0:11:51]} Na5 {[%emt 0:11:54]} 37. Rb5 {[%emt 0:10:03]} Nc6 {[%emt 0:11:07]} 38. Ke2 {[%emt 0:05:17]} Rb4 {[%emt 0:09:53]} 39. Rc5 {[%emt 0:05:11]} Ra2 {[%emt 0:09:13]} 40. Bxg7 {[%emt 0:05:05]} Rxd2+ {[%emt 0:06:09]} 41. Kxd2 {[%emt 0:06:09]} Kxg7 {[%emt 0:05:41]} 42. Rxc6 {[%emt 0:05:49]} Rb2+ {[%emt 0:05:36]} 43. Ke1 {[%emt 0:06:13]} Kg6 {[%emt 0:04:45]} 44. Rd6 {[%emt 0:06:25]} Kf5 {[%emt 0:04:21]} 45. Rd2 {[%emt 0:06:42]} ({White should play} 45. Kf1 $16) 45... Rb4 {[%emt 0:04:03]} (45... Rxd2 $1 $11 {keeps the balance.} 46. Kxd2 Kg4) 46. Ke2 {[%emt 0:06:34]} Ra4 {[%emt 0:04:14]} 47. Rb2 {[%emt 0:04:14]} Kg6 {[%emt 0:04:01]} 48. Rb3 {[%emt 0:06:52]} Ra2+ {[%emt 0:04:17]} 49. Kf3 {[%emt 0:07:16]} Kf6 {[%emt 0:07:16]} 50. Rb5 {[%emt 0:04:14]} Kg6 {[%emt 0:07:02]} 51. g4 {[%emt 0:07:08]} Ra4 {[%emt 0:04:35]} 52. Kg3 {[%emt 0:06:17]} Re4 {[%emt 0:04:39]} 53. Rb6 {[%emt 0:04:39]} Kf6 {[%emt 0:04:45]} 54. Rb3 {[%emt 0:05:00]} Ra4 {[%emt 0:04:32]} 55. Rb8 {[%emt 0:04:59]} Kg7 {[%emt 0:04:09]} 56. Rb5 {[%emt 0:04:49]} Kg6 {[%emt 0:04:24]} 57. g5 {[%emt 0:05:03]} ({White should try} 57. f3 $16) 57... Ra1 {[%emt 0:05:03]} 58. gxh6 {[%emt 0:04:34]} Kxh6 {[%emt 0:04:34]} 59. Rg5 {[%emt 0:04:19]} Rg1+ {[%emt 0:04:24]} 60. Kf4 {[%emt 0:03:26]} Rh1 {[%emt 0:03:34]} 61. Ke5 {[%emt 0:02:55]} Rxh4 $2 {[%emt 0:01:34]} (61... Rh2 $11) 62. Kf6 $18 {[%emt 0:02:44]} Rh2 {[%emt 0:28:59]} 63. f4 {[%emt 0:32:00]} Re2 {[%emt 0:28:30]} 64. Re5 {[%emt 0:32:18]} Ra2 {[%emt 0:28:12]} 65. Kxf7 {[%emt 0:32:42]} Ra7+ {[%emt 0:28:27]} 66. Kf6 {[%emt 0:33:02]} Kh7 {[%emt 0:28:39]} 67. Rxe6 {[%emt 0:33:08]} Kg8 {[%emt 0:29:00]} 68. Re7 {[%emt 0:33:31]} Z0 {[%emt 0:33:31]} 69. e4 {[%emt 0:33:31] Bf8 0:33:31} Z0 {[%emt 0:33:31] Qc2+ 0:33:31} 1-0

[Event "III. World-ch for Disabled 2017"]
[Site "Dresden"]
[Date "2017.10.10"]
[Round "6.3"]
[White "Miozga, Tomasz"]
[Black "Scerbin, Dmitrij"]
[Result "0-1"]
[ECO "A44"]
[WhiteElo "2023"]
[BlackElo "2312"]
[Annotator "NA"]
[PlyCount "182"]
[EventDate "2017.??.??"]
[EventType "swiss"]
[EventCountry "GER"]
[SourceTitle "playchess.com"]
[Source "ChessBase"]
[SourceQuality "1"]
[TimeControl "40/5400+30:1800+30"]

{[%evp 8,176,69,61,47,60,55,54,58,54,59,57,49,45,52,39,37,20,56,55,67,59,85,68,97,54,79,71,76,72,66,56,77,84,104,45,45,13,11,16,16,5,15,7,14,0,0,0,0,0,7,0,10,9,14,14,20,8,32767,32767,32767,32767,10,23,8,2,13,8,8,0,10,10,13,32767,32767,32767,32767,32767,32767,32767,32767,12,4,0,8,10,6,-34,-24,32767,32767,32767,32767,32767,32767,32767,32767,32767,32767,32767,32767,32767,32767,32767,32767,32767,32767,32767,32767,32767,32767,32767,-36,32767,32767,32767,-23,32767,32767,32767,32767,32767,32767,-30,32767,-30,32767,32767,32767,-23,32767,-18,0,0,32767,0,32767,32767,32767,32767,0,0,32767,32767,32767,32767,32767,32767,32767,32767,32767,32767,32767,32767,32767,32767,0,32767,32767,32767,32767,32767,0,32767,32767,32767,32767,32767,0,32767,0]} 1. d4 {[%emt 1:30:27]} c5 {[%emt 1:30:22]} 2. d5 {[%emt 1:30:52]} e5 {[%emt 1:30:44]} 3. c4 {[%emt 1:31:00]} d6 {[%emt 1:30:59]} 4. e4 {[%emt 1:26:15]} Be7 {[%emt 1:30:29]} 5. Bd3 {[%emt 1:25:37] LiveBook: 14 Games} Bg5 {[%emt 1:30:08]} 6. Nc3 {[%emt 1:18:14]} Bxc1 {[%emt 1:28:17] A44: Semi-Benoni} (6... h6 7. Nge2 Ne7 8. O-O Ng6 9. Ng3 Bxc1 10. Rxc1 Nf4 11. Nce2 Qg5 12. f3 Nd7 13. Kh1 O-O 14. Qd2 Nxd3 15. Qxd3 {0-1 (42) Lahlum,H (2131)-Martinovic,S (2570) Helsingor 2017}) 7. Qxc1 {[%emt 1:18:40]} Ne7 {[%emt 1:27:06]} 8. Nge2 {[%emt 1:16:07]} O-O {[%emt 1:21:59]} 9. O-O {[%emt 1:05:13]} Ng6 {[%emt 1:20:26]} 10. Qe3 {[%emt 1:03:32]} Nd7 {[%emt 1:13:13]} 11. a3 {[%emt 0:50:20]} Nf6 {[%emt 1:12:59]} 12. f3 $146 {[%emt 0:39:08]} ({Predecessor:} 12. b4 b6 13. f3 {1-0 (48) Manakova,M (2345)-Kovacevic,R (2075) Budva 2002}) 12... Nh5 {[%emt 1:10:42]} 13. g3 {[%emt 0:26:43]} Nf6 {[%emt 1:07:26]} 14. b4 {[%emt 0:25:01]} Nd7 {[%emt 1:05:55]} 15. Rfb1 {[%emt 0:23:02]} Qe7 {[%emt 0:55:31]} 16. Nc1 {[%emt 0:22:24]} b6 {[%emt 0:46:00]} 17. Nb3 {[%emt 0:22:26]} h6 {[%emt 0:45:11]} 18. Nd2 {[%emt 0:22:31]} Nf6 {[%emt 0:32:08]} 19. a4 {[%emt 0:21:33]} Bd7 {[%emt 0:27:50]} 20. a5 {[%emt 0:20:18]} Rfb8 {[%emt 0:25:05]} 21. axb6 {[%emt 0:17:23]} axb6 {[%emt 0:25:19]} 22. Nb5 {[%emt 0:13:25]} Rxa1 {[%emt 0:21:13]} 23. Rxa1 {[%emt 0:13:39]} Bxb5 {[%emt 0:21:41]} 24. cxb5 {[%emt 0:13:54]} cxb4 {[%emt 0:22:02]} 25. Nc4 {[%emt 0:14:00]} Qc7 {[%emt 0:21:23]} 26. Ra4 {[%emt 0:12:22]} Nd7 {[%emt 0:20:52]} 27. Rxb4 {[%emt 0:12:47]} Ra8 {[%emt 0:20:54]} 28. Rb1 {[%emt 0:12:45]} Ra2 {[%emt 0:12:45]} 29. Bf1 {[%emt 0:12:34]} Nc5 {[%emt 0:18:18]} 30. Qc1 {[%emt 0:07:42]} Nf8 {[%emt 0:12:21]} 31. Qe1 {[%emt 0:05:41]} Nfd7 {[%emt 0:05:41]} 32. Ra1 {[%emt 0:05:33]} Rxa1 {[%emt 0:07:41]} 33. Qxa1 {[%emt 0:05:59]} Qb8 {[%emt 0:07:21]} 34. Qa3 {[%emt 0:05:39]} g6 {[%emt 0:05:45]} 35. Bh3 {[%emt 0:05:57]} Nf6 {[%emt 0:06:05]} 36. Qa1 {[%emt 0:04:48]} Nh7 {[%emt 0:06:04]} 37. Bg2 {[%emt 0:04:41]} Nf8 {[%emt 0:04:03]} 38. Bh3 {[%emt 0:04:33]} Kg7 {[%emt 0:02:32]} 39. Qa3 {[%emt 0:02:30]} Nh7 {[%emt 0:02:32]} 40. Bg2 {[%emt 0:02:00]} Nf6 {[%emt 0:01:53]} 41. Qa1 {[%emt 0:02:02]} Nfd7 {[%emt 0:01:42]} 42. Bh3 {[%emt 0:02:20]} Nf8 {[%emt 0:02:20]} 43. Qa3 {[%emt 0:02:21]} h5 {[%emt 0:29:31]} 44. Qe3 {[%emt 0:27:37]} Qc7 {[%emt 0:26:21]} 45. Bf1 {[%emt 0:27:59]} Nfd7 {[%emt 0:23:58]} 46. Qa3 {[%emt 0:21:59]} Qb8 {[%emt 0:21:25]} 47. Qa1 {[%emt 0:21:44]} Nb3 {[%emt 0:18:31]} 48. Qa6 {[%emt 0:10:08]} Qc7 {[%emt 0:16:56]} 49. Kg2 {[%emt 0:09:15]} Nd4 {[%emt 0:16:31]} 50. Bd3 {[%emt 0:07:54]} Nc5 {[%emt 0:15:44]} 51. Qa3 {[%emt 0:08:00]} Nxb5 {[%emt 0:15:06]} 52. Qb4 {[%emt 0:07:23]} Nd4 {[%emt 0:15:17]} 53. Bf1 {[%emt 0:07:40]} b5 {[%emt 0:07:40]} 54. Na3 {[%emt 0:05:31]} Na6 {[%emt 0:05:35]} 55. Qb2 {[%emt 0:05:17]} b4 {[%emt 0:05:27]} 56. Bxa6 {[%emt 0:02:20]} Qa5 {[%emt 0:04:59]} 57. Nc4 {[%emt 0:02:33]} Qxa6 {[%emt 0:05:25]} 58. Qxb4 {[%emt 0:02:54]} Qa2+ {[%emt 0:05:52]} 59. Nb2 {[%emt 0:01:44] [#]} Nc2 {[%emt 0:05:00]} ({Black should play} 59... h4 $1 $19 {[%cal Rh4h3][%mdl 512]} 60. Qd2 {[#]} (60. gxh4 Ne2) 60... h3+ $1 {[%mdl 512]} 61. Kxh3 Nxf3) 60. Qc3 {[%emt 0:05:00]} Qb1 {[%emt 0:05:09]} 61. Nc4 {[%emt 0:00:55]} Nd4 {[%emt 0:03:50]} 62. Qd2 {[%emt 0:00:18]} Qb3 {[%emt 0:03:38]} 63. Ne3 {[%emt 0:00:15]} Qa3 {[%emt 0:00:15]} 64. Qf2 {[%emt 0:00:08]} Qc5 {[%emt 0:02:56]} 65. h4 {[%emt 0:00:12]} Qc1 {[%emt 0:03:11]} 66. Nf1 {[%emt 0:00:05]} Qc4 {[%emt 0:00:05]} 67. Ne3 {[%emt 0:00:30]} Qd3 {[%emt 0:03:11]} 68. Nf1 {[%emt 0:00:31]} f5 {[%emt 0:03:17]} 69. Qe3 {[%emt 0:00:19]} fxe4 {[%emt 0:03:31]} 70. fxe4 {[%emt 0:00:07]} Qc2+ {[%emt 0:03:22]} 71. Kh1 {[%emt 0:03:22]} Qd1 {[%emt 0:02:53]} 72. Kg2 {[%emt 0:00:03]} Qg4 {[%emt 0:03:09]} 73. Nh2 {[%emt 0:00:04]} Qd1 {[%emt 0:03:08]} 74. Nf1 {[%emt 0:00:04]} Qc2+ {[%emt 0:03:04]} 75. Kh1 {[%emt 0:00:22]} Nb3 {[%emt 0:02:59]} 76. Qa7+ {[%emt 0:00:17]} Kf6 {[%emt 0:03:11]} 77. Qe3 {[%emt 0:00:24]} Nd4 {[%emt 0:03:18]} 78. Kg1 {[%emt 0:00:18]} Qd1 {[%emt 0:00:18]} 79. Qf2+ {[%emt 0:03:16]} Kg7 {[%emt 0:03:31]} 80. Qe3 {[%emt 0:00:32]} Nf3+ {[%emt 0:03:00]} 81. Kf2 {[%emt 0:00:53]} Nd4 {[%emt 0:02:37]} 82. Kg1 {[%emt 0:01:09]} Qg4 {[%emt 0:01:23]} 83. Nh2 {[%emt 0:01:00]} Qh3 {[%emt 0:01:39]} 84. Nf1 {[%emt 0:00:55]} Qd7 {[%emt 0:01:43]} 85. Kg2 {[%emt 0:01:43]} Qb5 {[%emt 0:01:47]} 86. Kg1 {[%emt 0:00:11]} Qa6 {[%emt 0:01:52]} 87. Kg2 {[%emt 0:00:19]} Qa2+ {[%emt 0:00:19]} 88. Kh1 {[%emt 0:00:04]} Qb1 $11 {[%emt 0:01:31]} 89. Kg2 {[%emt 0:00:17]} Qd1 {[%emt 0:01:43]} 90. Kg1 {[%emt 0:00:30]} Qc2 {[%emt 0:01:38]} 91. Nd2 {[%emt 0:00:13]} Qxd2 {[%emt 0:02:04]} 0-1

[Event "III. World-ch for Disabled 2017"]
[Site "Dresden"]
[Date "2017.10.10"]
[Round "6.4"]
[White "Kozhamuratov, Marat"]
[Black "Suder, Ryszard"]
[Result "1/2-1/2"]
[ECO "D13"]
[WhiteElo "1784"]
[BlackElo "2061"]
[Annotator "NA RC"]
[PlyCount "60"]
[EventDate "2017.??.??"]
[EventType "swiss"]
[EventCountry "GER"]
[SourceTitle "playchess.com"]
[Source "ChessBase"]
[SourceQuality "1"]
[TimeControl "40/5400+30:1800+30"]

{[%evp 8,57,36,18,22,32767,18,13,20,14,18,8,0,0,23,34,12,29,22,23,19,12,8,18,20,20,29,12,14,0,0,14,3,0,0,0,12,-23,-10,-50,-52,-75,-27,-31,0,-76,0,-35,0,-79,0,-287]} 1. d4 {[%emt 1:29:42]} Nf6 {[%emt 1:29:42]} 2. Nf3 {[%emt 1:29:27]} g6 {[%emt 1:30:31]} 3. c4 {[%emt 1:28:57]} Bg7 {[%emt 1:30:45]} 4. Nc3 {[%emt 1:30:45]} d5 {[%emt 1:30:54]} 5. Bg5 {[%emt 1:28:20]} Ne4 {[%emt 1:28:20]} 6. Bf4 {[%emt 1:25:49]} Nxc3 {[%emt 1:28:57]} 7. bxc3 {[%emt 1:23:36]} O-O {[%emt 1:21:18]} 8. e3 {[%emt 1:22:58]} c5 {[%emt 1:22:58]} 9. Be2 {[%emt 1:22:36]} dxc4 {[%emt 1:18:38]} 10. Bxc4 {[%emt 1:21:06]} Nc6 {[%emt 1:18:40]} 11. O-O {[%emt 1:18:40]} cxd4 {[%emt 1:15:35]} 12. cxd4 {[%emt 1:17:29]} Bf5 {[%emt 1:14:34]} 13. Rc1 {[%emt 1:14:34]} Rc8 {[%emt 1:08:46]} 14. Qe2 {[%emt 1:15:09] LiveBook: 10 Games} Na5 {[%emt 0:59:05] D13: Slav Defence: Exchange variation without ...Bf5} (14... e6 15. Qb2 Qe7 16. h3 Be4 17. Rfd1 Bxf3 18. gxf3 Rfd8 19. Bf1 h5 20. Qb5 e5 21. dxe5 Rxd1 22. Rxd1 Bxe5 23. Bxe5 Nxe5 24. Bg2 {½-½ (24) Maksimenko,A (2547)-Ernst,S (2554) Germany 2013}) 15. Bd3 {[%emt 0:59:05]} Bxd3 {[%emt 0:57:08]} 16. Qxd3 {[%emt 1:13:23]} Qd7 {[%emt 0:56:41]} 17. h3 $146 {[%emt 1:08:35]} ({Predecessor:} 17. Rc3 b5 18. Rfc1 Rc4 19. Nd2 e5 20. Bg3 exd4 21. Nxc4 bxc4 22. Qd2 {0-1 (55) Udani,I (2272)-Villamayor,B (2453) Penang 2016}) 17... Rfd8 {[%emt 0:53:34]} 18. Qe4 {[%emt 1:06:06]} b6 {[%emt 1:06:06]} 19. Bg5 {[%emt 0:48:29]} f6 {[%emt 0:47:24]} 20. Bf4 {[%emt 1:04:59]} e6 {[%emt 0:46:53]} 21. Qd3 {[%emt 1:03:59]} b5 {[%emt 0:43:31]} 22. Rc3 {[%emt 0:56:05]} Nc4 {[%emt 0:34:00]} 23. Qc2 {[%emt 0:34:00]} Bf8 {[%emt 0:33:01]} 24. Qb3 $1 {[%emt 0:53:14] [#]} Na5 {[%emt 0:32:13]} (24... a5 $1 $17) 25. Qb2 {[%emt 0:52:30]} Nc4 {[%emt 0:29:57]} 26. Qb3 {[%emt 0:29:57]} Na5 {[%emt 0:52:17]} 27. Qb2 {[%emt 0:52:30]} Nc4 {[%emt 0:27:10]} 28. Qb3 {[%emt 0:27:10] [#]} Ra8 {[%emt 0:27:10]} 29. Bc7 $19 {[%emt 0:27:10] Qd8 0:27:10 Rh1+ 0:27:10} (29. a4 $11 {und Weiss muss sich keine Sorgen machen.}) 29... Z0 {[%emt 0:27:10] Ng1+ 0:27:10 --- 0:27:10} 30. Qd1 {[%emt 0:27:10]} Z0 {[%emt 0:27:10] Bd7+ 0:27:10} 1/2-1/2

[Event "III. World-ch for Disabled 2017"]
[Site "Dresden"]
[Date "2017.10.13"]
[Round "7.2"]
[White "Lipilin, Ilia"]
[Black "Checiak, Krzysztof"]
[Result "1-0"]
[ECO "E81"]
[WhiteElo "1883"]
[BlackElo "2049"]
[Annotator "NA"]
[PlyCount "130"]
[EventDate "2017.??.??"]
[EventType "swiss"]
[EventCountry "GER"]
[SourceTitle "playchess.com"]
[Source "ChessBase"]
[SourceQuality "1"]
[TimeControl "40/5400+30:1800+30"]

{[%evp 8,123,41,41,43,42,39,38,72,73,80,73,85,77,69,61,86,28,37,20,42,30,72,58,75,41,49,32,49,20,16,8,24,-57,-50,-70,-32,-41,-6,0,98,55,37,46,57,52,44,50,75,68,70,44,109,55,86,95,117,118,114,94,79,0,58,54,78,6,46,0,68,0,2,0,0,-70,-60,-59,39,-43,0,-122,-177,-193,414,463,414,395,805,458,489,477,464,533,508,564,596,466,587,461,615,586,662,777,871,1053,823,929,1386,1869,1859,1970,2436,3139,3437,8940,12843,12843,12845,29990]} 1. c4 {[%emt 1:30:24]} g6 {[%emt 1:27:12]} 2. Nc3 {[%emt 1:30:41]} Bg7 {[%emt 1:27:23]} 3. d4 {[%emt 1:30:34]} Nf6 {[%emt 1:27:23]} 4. e4 {[%emt 1:30:50]} d6 {[%emt 1:27:47]} 5. f3 {[%emt 1:27:47]} O-O {[%emt 1:27:29]} 6. Bg5 {[%emt 1:31:09]} h6 {[%emt 1:20:38] LiveBook: 114 Games} 7. Be3 {[%emt 1:31:20]} Nbd7 {[%emt 1:18:58]} 8. Nh3 {[%emt 1:29:58] E81: King's Indian: Sämisch: 6th move deviations (including 6 Be3 c6)} c6 {[%emt 1:29:58]} 9. Qd2 {[%emt 1:29:35]} Kh7 {[%emt 1:18:44]} 10. Nf2 {[%emt 1:28:55]} a6 {[%emt 1:18:11]} 11. Be2 {[%emt 1:28:17]} b5 {[%emt 1:18:20]} 12. cxb5 {[%emt 1:27:53]} (12. O-O $16 bxc4 13. Bxc4 Nb6 14. Bd3 a5 15. Qe2 Nfd7 16. f4 {1-0 (44) Yakovich,Y (2585)-Inarkiev,E (2602) Moscow 2005}) 12... axb5 {[%emt 1:17:54]} 13. O-O $146 {[%emt 1:27:29]} ({Predecessor:} 13. Nd3 Nb6 14. b3 Be6 15. O-O Nc8 16. Nb4 Bd7 17. e5 {1-0 (31) Bury,T (1803)-Fork,R (1897) Germany 2008}) 13... Bb7 {[%emt 1:14:05]} 14. a3 {[%emt 1:24:14]} Qa5 {[%emt 1:11:04]} 15. b4 {[%emt 1:11:04]} Qd8 {[%emt 1:10:55]} 16. Nd3 {[%emt 1:12:55]} Nb6 {[%emt 1:11:05]} 17. Nb2 {[%emt 1:11:05]} Nfd7 {[%emt 1:04:46]} 18. Kh1 {[%emt 1:04:46]} e6 {[%emt 1:04:05]} 19. Rfd1 {[%emt 0:59:41]} Qf6 {[%emt 0:59:41]} 20. e5 {[%emt 0:39:18]} (20. Kg1 $11) 20... dxe5 {[%emt 0:56:31]} 21. Ne4 {[%emt 0:39:22]} Qe7 {[%emt 0:39:22]} 22. dxe5 {[%emt 0:37:08]} Nd5 {[%emt 0:47:45]} 23. f4 {[%emt 0:34:37]} Rfb8 {[%emt 0:40:09]} (23... f6 $11 24. Nd3 Nxe3 25. Qxe3 fxe5 26. fxe5 Nxe5) 24. Bc5 {[%emt 0:29:10]} Nxc5 {[%emt 0:36:57]} 25. Nxc5 {[%emt 0:29:08]} Bc8 {[%emt 0:36:41]} 26. Bf3 {[%emt 0:28:14]} Ra7 {[%emt 0:36:19]} 27. Nb3 {[%emt 0:22:41]} f6 {[%emt 0:34:16]} 28. Nd3 {[%emt 0:34:16]} fxe5 {[%emt 0:31:15]} 29. fxe5 {[%emt 0:22:02]} Rd7 {[%emt 0:30:09]} (29... Rba8 $14) 30. Na5 {[%emt 0:15:49]} (30. Nd4 $16 Rc7 31. Re1) 30... Rb6 {[%emt 0:15:49]} 31. Rac1 {[%emt 0:11:33]} Rc7 {[%emt 0:26:59]} 32. Qf2 {[%emt 0:26:59]} Ra6 $1 $11 {[%emt 0:26:32]} 33. Nc5 {[%emt 0:06:41]} Ra8 {[%emt 0:24:43]} 34. Nd3 {[%emt 0:24:43]} (34. Qg3 $16) 34... Bd7 {[%emt 0:24:22]} 35. Be4 {[%emt 0:03:20]} Qg5 $1 {[%emt 0:23:19]} 36. Nc5 {[%emt 0:01:59]} (36. h4 $14 Qe3 37. Qxe3 Nxe3 38. Re1) 36... Bc8 {[%emt 0:21:19]} 37. Nd3 {[%emt 0:01:03]} Bd7 {[%emt 0:20:07]} 38. Nc5 {[%emt 0:20:07]} Rf8 {[%emt 0:19:53]} 39. Qe2 {[%emt 0:19:53]} Bxe5 {[%emt 0:16:52]} 40. Nxd7 {[%emt 0:16:52]} (40. Na6 $11) 40... Rxd7 {[%emt 0:16:56]} 41. Nxc6 {[%emt 0:25:03]} Bf4 {[%emt 0:45:27]} ({Black should play} 41... Bg7 $1 $15 42. Qd3 (42. Qxb5 $2 Nc3 $19) 42... Rff7) 42. Rc2 {[%emt 0:22:04]} (42. Nd4 $1 $14 Qf6 43. Rc6 (43. Qxb5 Rff7 $19)) 42... Rdf7 {[%emt 0:43:36]} 43. Bxd5 {[%emt 0:21:38]} (43. Nd4 $11 {remains equal.} Bxh2 44. Kxh2 (44. Nxe6 Qh4 $15)) 43... exd5 {[%emt 0:43:40]} 44. Nd4 {[%emt 0:21:28] [#]} ({Don't blunder} 44. Qxb5 $2 {[#]} Bxh2 $1 {[%mdl 512]} 45. g4 Bg3 $19) 44... Re7 $4 {[%emt 0:39:23]} ({Not} 44... Qh4 45. Nf3 $16) (44... Bxh2 $1 $19 {[%mdl 512] and all is fine.} 45. Ne6 {[#]} (45. Kxh2 $2 Rf2 $19) 45... Qh4 $1 {[%mdl 512]} 46. Nxf8+ Rxf8) 45. Ne6 {[%emt 0:17:58]} Rxe6 {[%emt 0:37:21]} 46. Qxe6 {[%emt 0:18:07]} Bxh2 {[%emt 0:36:54]} (46... Qh5 $142 47. g4 Qh3 48. Qxd5 Kg7) 47. Qd7+ {[%emt 0:13:03]} Kg8 {[%emt 0:13:03]} 48. Qxd5+ {[%emt 0:35:45]} Qxd5 {[%emt 0:35:20]} 49. Rxd5 {[%emt 0:13:01]} Bg3 {[%emt 0:35:22]} 50. Rc1 {[%emt 0:13:03]} Rf4 {[%emt 0:13:03]} 51. Rd7 {[%emt 0:32:36]} Rf8 {[%emt 0:11:33]} 52. Rcd1 {[%emt 0:11:24]} Bh4 {[%emt 0:32:43]} 53. Rb7 {[%emt 0:11:41]} Rf5 {[%emt 0:32:33]} 54. Rc1 {[%emt 0:11:36]} Rf8 {[%emt 0:31:55]} 55. Rxb5 {[%emt 0:11:28]} h5 {[%emt 0:32:09]} 56. Rb7 {[%emt 0:11:43]} Bg3 {[%emt 0:32:08]} 57. a4 {[%emt 0:11:50]} Bf4 {[%emt 0:11:50]} 58. Rd1 {[%emt 0:12:05]} g5 {[%emt 0:32:25]} 59. a5 {[%emt 0:12:22]} g4 {[%emt 0:32:46]} 60. a6 {[%emt 0:32:46]} Be3 {[%emt 0:32:28]} 61. a7 {[%emt 0:12:41]} g3 {[%emt 0:32:38]} 62. b5 {[%emt 0:12:43]} h4 {[%emt 0:29:22]} 63. b6 {[%emt 0:12:44]} Bf4 {[%emt 0:29:31]} 64. Rbd7 {[%emt 0:12:55]} Bg5 {[%emt 0:28:35]} 65. b7 {[%emt 0:13:10]} Bd2 {[%emt 0:27:58]} 1-0